fUST/lending_fUST_20250611
["ID","MTS","AMOUNT","RATE_DAILY","PERIOD"]
[365319617,1749599441907,-722.67,0.00022593,6]
[365319619,1749599441917,-151.0,0.000226,8]
[365319621,1749599441926,-774.51,0.000226,7]
[365319623,1749599441936,-201.60095132,0.00022621,2]
[365319625,1749599441949,-2875.67174954,0.00022624,7]
[365319627,1749599441958,-722.67,0.00022693,5]
[365319629,1749599441967,-28866.27716416,0.000227,2]
[365319631,1749599441977,-33608.25996679,0.000227,2]
[365319633,1749599441987,-25705.08025029,0.000227,2]
[365319635,1749599441996,-1000.0,0.00022721,2]
[365319637,1749599442005,-1200.0,0.00022721,2]
[365319639,1749599442014,-2875.67174954,0.00022728,7]
[365319641,1749599442024,-460.0,0.00022739,4]
[365319643,1749599442034,-460.0,0.00022739,4]
[365319645,1749599442043,-552.29,0.00022739,4]
[365319647,1749599442052,-400.0,0.00022739,4]
[365319648,1749599442061,-907.63,0.00022739,4]
[365319650,1749599442070,-360.0,0.00022739,4]
[365319653,1749599442081,-460.0,0.00022739,4]
[365319654,1749599442091,-460.0,0.00022739,4]
[365319656,1749599442103,-460.0,0.00022739,4]
[365319659,1749599442116,-1719.13,0.00022739,4]
[365319661,1749599442125,-604.28,0.00022739,4]
[365319663,1749599442135,-460.0,0.00022739,2]
[365319665,1749599442145,-2081.28,0.00022739,4]
[365319667,1749599442155,-460.0,0.00022739,4]
[365319669,1749599442164,-460.0,0.00022739,4]
[365319671,1749599442173,-839.3,0.00022739,4]
[365319673,1749599442182,-1066.18,0.00022739,4]
[365319675,1749599442191,-1576.2,0.00022739,4]
[365319677,1749599442200,-1003.79,0.00022739,4]
[365319679,1749599442209,-1753.64,0.00022739,4]
[365319681,1749599442219,-652.87,0.00022739,4]
[365319683,1749599442228,-460.0,0.00022739,4]
[365319685,1749599442238,-2613.35,0.00022739,4]
[365319686,1749599442248,-460.0,0.00022739,4]
[365319689,1749599442258,-1827.66,0.00022739,4]
[365319691,1749599442268,-1160.04,0.00022739,4]
[365319693,1749599442277,-2159.34,0.00022739,4]
[365319695,1749599442286,-460.0,0.00022739,4]
[365319697,1749599442295,-460.0,0.00022739,4]
[365319699,1749599442306,-460.0,0.00022739,4]
[365319701,1749599442320,-1171.58,0.00022739,4]
[365319714,1749599442428,-672.06,0.00022739,4]
[365319716,1749599442441,-983.42,0.00022739,4]
[365319718,1749599442451,-2360.04,0.00022739,4]
[365319720,1749599442460,-11858.11761888,0.00022744,2]
[365319722,1749599442470,-424.12530924,0.00022744,2]
[365319724,1749599442479,-834.9046531,0.00022744,2]
[365319726,1749599442488,-842.5625,0.00022744,2]
[365319728,1749599442498,-229.6792923,0.00022744,2]
[365319730,1749599442508,-160.0,0.00022744,2]
[365319732,1749599442517,-160.0,0.00022749,2]
[365319734,1749599442527,-160.0,0.00022749,2]
[365319736,1749599442537,-160.0,0.00022749,2]
[365319738,1749599442546,-160.0,0.00022749,2]
[365319740,1749599442555,-160.0,0.00022749,2]
[365319742,1749599442565,-160.0,0.00022749,2]
[365319744,1749599442574,-213.1263252,0.00022749,2]
[365319746,1749599442585,-722.67,0.00022793,6]
[365319748,1749599442594,-43001.87,0.000228,2]
[365319750,1749599442604,-2349.44,0.00022819,2]
[365319752,1749599442614,-2875.67174954,0.00022831,8]
[365319754,1749599442623,-5888.0,0.00022877,2]
[365319756,1749599442633,-722.67,0.00022893,6]
[365319758,1749599442644,-2875.67174954,0.00022934,8]
[365319760,1749599442654,-420.0,0.00022943,2]
[365319762,1749599442664,-722.67,0.00022993,6]
[365319764,1749599442674,-151.0,0.00023,10]
[365319766,1749599442683,-2515.76,0.00023003,3]
[365319768,1749599442692,-1257.88,0.00023003,3]
[365319771,1749599442702,-628.94,0.00023003,3]
[365319773,1749599442711,-314.46,0.00023003,3]
[365319775,1749599442721,-460.0,0.00023013,4]
[365319776,1749599442730,-460.0,0.00023013,4]
[365319779,1749599442740,-552.29,0.00023013,4]
[365319781,1749599442749,-400.0,0.00023013,4]
[365319783,1749599442758,-907.63,0.00023013,4]
[365319785,1749599442768,-460.0,0.00023013,4]
[365319787,1749599442777,-460.0,0.00023013,4]
[365319789,1749599442786,-460.0,0.00023013,4]
[365319791,1749599442796,-1719.13,0.00023013,4]
[365319793,1749599442805,-604.28,0.00023013,4]
[365319795,1749599442815,-460.0,0.00023013,2]
[365319797,1749599442824,-2081.28,0.00023013,4]
[365319799,1749599442833,-460.0,0.00023013,4]
[365319801,1749599442843,-460.0,0.00023013,4]
[365319803,1749599442853,-839.3,0.00023013,4]
[365319805,1749599442862,-1066.18,0.00023013,4]
[365319807,1749599442871,-1576.2,0.00023013,4]
[365319809,1749599442880,-1003.79,0.00023013,4]
[365319811,1749599442890,-1753.64,0.00023013,4]
[365319813,1749599442900,-652.87,0.00023013,4]
[365319815,1749599442909,-460.0,0.00023013,4]
[365319818,1749599442919,-2613.35,0.00023013,4]
[365319820,1749599442928,-460.0,0.00023013,4]
[365319822,1749599442939,-1160.04,0.00023013,4]
[365319824,1749599442952,-1827.66,0.00023013,4]
[365319826,1749599442962,-2159.34,0.00023013,4]
[365319828,1749599442971,-460.0,0.00023013,4]
[365319830,1749599442980,-460.0,0.00023013,4]
[365319832,1749599442990,-460.0,0.00023013,4]
[365319834,1749599442999,-1171.58,0.00023013,4]
[365319836,1749599443008,-672.06,0.00023013,4]
[365319838,1749599443018,-983.42,0.00023013,4]
[365319840,1749599443027,-2360.04,0.00023013,4]
[365319842,1749599443037,-204.0,0.00023014,7]
[365319844,1749599443047,-2875.67174954,0.00023038,8]
[365319845,1749599443056,-722.67,0.00023093,6]
[365319847,1749599443066,-153.0,0.00023103,2]
[365319849,1749599443075,-153.0,0.00023103,2]
[365319851,1749599443084,-153.0,0.00023103,2]
[365319853,1749599443094,-153.0,0.00023103,2]
[365319856,1749599443104,-153.0,0.00023103,2]
[365319858,1749599443117,-153.0,0.00023103,2]
[365319860,1749599443137,-153.0,0.00023103,2]
[365319861,1749599443153,-153.0,0.00023103,2]
[365319863,1749599443165,-153.0,0.00023103,2]
[365319865,1749599443175,-153.0,0.00023103,2]
[365319867,1749599443184,-153.0,0.00023103,2]
[365319869,1749599443193,-153.0,0.00023103,2]
[365319871,1749599443203,-153.0,0.00023103,2]
[365319873,1749599443212,-153.0,0.00023103,2]
[365319875,1749599443221,-153.0,0.00023103,2]
[365319877,1749599443231,-153.0,0.00023103,2]
[365319879,1749599443240,-153.0,0.00023103,2]
[365319881,1749599443250,-153.0,0.00023103,2]
[365319883,1749599443259,-153.0,0.00023103,2]
[365319885,1749599443268,-153.0,0.00023103,2]
[365319887,1749599443277,-153.0,0.00023103,2]
[365319889,1749599443287,-153.0,0.00023103,2]
[365319891,1749599443296,-153.0,0.00023103,2]
[365319893,1749599443305,-153.0,0.00023103,2]
[365319895,1749599443315,-153.0,0.00023103,2]
[365319897,1749599443324,-153.0,0.00023103,2]
[365319899,1749599443333,-153.0,0.00023103,2]
[365319901,1749599443342,-153.0,0.00023103,2]
[365319903,1749599443354,-153.0,0.00023103,2]
[365319905,1749599443363,-153.0,0.00023103,2]
[365319907,1749599443373,-153.0,0.00023103,2]
[365319909,1749599443382,-153.0,0.00023103,2]
[365319912,1749599443393,-153.0,0.00023103,2]
[365319914,1749599443403,-153.0,0.00023103,2]
[365319916,1749599443413,-153.0,0.00023103,2]
[365319918,1749599443422,-153.0,0.00023103,2]
[365319920,1749599443431,-153.0,0.00023103,2]
[365319923,1749599443441,-153.0,0.00023103,2]
[365319927,1749599443451,-153.0,0.00023103,2]
[365319930,1749599443461,-153.0,0.00023103,2]
[365319932,1749599443470,-153.0,0.00023103,2]
[365319934,1749599443480,-153.0,0.00023103,2]
[365319936,1749599443489,-153.0,0.00023103,2]
[365319938,1749599443499,-153.0,0.00023103,2]
[365319940,1749599443508,-153.0,0.00023103,2]
[365319942,1749599443518,-153.0,0.00023103,2]
[365319944,1749599443528,-153.0,0.00023103,2]
[365319946,1749599443537,-153.0,0.00023103,2]
[365319948,1749599443546,-153.0,0.00023103,2]
[365319950,1749599443554,-153.0,0.00023103,2]
[365319952,1749599443563,-153.0,0.00023103,2]
[365319954,1749599443573,-153.0,0.00023103,2]
[365319956,1749599443582,-153.0,0.00023103,2]
[365319958,1749599443592,-153.0,0.00023103,2]
[365319960,1749599443601,-153.0,0.00023103,2]
[365319962,1749599443610,-153.0,0.00023103,2]
[365319964,1749599443619,-153.0,0.00023103,2]
[365319966,1749599443628,-153.0,0.00023103,2]
[365319968,1749599443637,-153.0,0.00023103,2]
[365319970,1749599443648,-153.0,0.00023103,2]
[365319972,1749599443657,-153.0,0.00023103,2]
[365319974,1749599443666,-153.0,0.00023103,2]
[365319976,1749599443675,-153.0,0.00023103,2]
[365319978,1749599443685,-153.0,0.00023103,2]
[365319980,1749599443694,-153.0,0.00023103,2]
[365319982,1749599443703,-153.0,0.00023103,2]
[365319984,1749599443712,-153.0,0.00023103,2]
[365319986,1749599443721,-153.0,0.00023103,2]
[365319988,1749599443730,-153.0,0.00023103,2]
[365319990,1749599443739,-153.0,0.00023103,2]
[365319992,1749599443749,-153.0,0.00023103,2]
[365319994,1749599443759,-153.0,0.00023103,2]
[365319996,1749599443768,-153.0,0.00023103,2]
[365319998,1749599443777,-153.0,0.00023103,2]
[365320000,1749599443786,-153.0,0.00023103,2]
[365320002,1749599443795,-153.0,0.00023103,2]
[365320004,1749599443804,-153.0,0.00023103,2]
[365320006,1749599443813,-153.0,0.00023103,2]
[365320007,1749599443822,-153.0,0.00023103,2]
[365320009,1749599443830,-153.0,0.00023103,2]
[365320011,1749599443839,-153.0,0.00023103,2]
[365320013,1749599443848,-153.0,0.00023103,2]
[365320015,1749599443857,-153.0,0.00023103,2]
[365320017,1749599443867,-2875.67174954,0.00023141,8]
[365320019,1749599443876,-201.60095132,0.0002316,2]
[365320021,1749599443885,-364.9974737,0.00023191,2]
[365320023,1749599443896,-364.9974737,0.00023191,2]
[365320025,1749599443905,-722.67,0.00023193,7]
[365320027,1749599443914,-2494.25,0.000232,7]
[365320029,1749599443923,-309.69694293,0.00023229,2]
[365320031,1749599443932,-2875.67174954,0.00023245,8]
[365320033,1749599443942,-600.0,0.00023256,2]
[365320035,1749599443953,-1500.0,0.00023268,2]
[365320037,1749599443963,-1800.0,0.00023268,2]
[365320039,1749599443972,-500.0,0.00023273,2]
[365320041,1749599443981,-500.0,0.00023273,2]
[365320043,1749599443990,-500.0,0.00023273,2]
[365320045,1749599443999,-500.0,0.00023273,2]
[365320047,1749599444009,-460.0,0.00023287,4]
[365320049,1749599444018,-460.0,0.00023287,4]
[365320051,1749599444028,-552.29,0.00023287,4]
[365320053,1749599444038,-400.0,0.00023287,4]
[365320055,1749599444047,-907.63,0.00023287,4]
[365320057,1749599444057,-412.05,0.00023287,4]
[365320060,1749599444067,-460.0,0.00023287,4]
[365320061,1749599444077,-460.0,0.00023287,4]
[365320064,1749599444086,-1719.13,0.00023287,4]
[365320066,1749599444096,-604.28,0.00023287,4]
[365320068,1749599444105,-460.0,0.00023287,2]
[365320070,1749599444116,-2081.28,0.00023287,4]
[365320072,1749599444126,-582.44983886,0.00023287,4]
[365320074,1749599444135,-460.0,0.00023287,4]
[365320075,1749599444145,-839.3,0.00023287,4]
[365320077,1749599444154,-1066.18,0.00023287,4]
[365320079,1749599444164,-1576.2,0.00023287,4]
[365320081,1749599444174,-1003.79,0.00023287,4]
[365320083,1749599444183,-1753.64,0.00023287,4]
[365320085,1749599444193,-652.87,0.00023287,4]
[365320087,1749599444203,-460.0,0.00023287,4]
[365320090,1749599444212,-2613.35,0.00023287,4]
[365320091,1749599444222,-460.0,0.00023287,4]
[365320094,1749599444231,-1160.04,0.00023287,4]
[365320096,1749599444241,-1827.66,0.00023287,4]
[365320098,1749599444251,-2159.34,0.00023287,4]
[365320100,1749599444262,-460.0,0.00023287,4]
[365320102,1749599444271,-460.0,0.00023287,4]
[365320104,1749599444281,-460.0,0.00023287,4]
[365320106,1749599444290,-1171.58,0.00023287,4]
[365320107,1749599444299,-672.06,0.00023287,4]
[365320109,1749599444308,-983.42,0.00023287,4]
[365320111,1749599444317,-2360.04,0.00023287,4]
[365320113,1749599444325,-573.3540349,0.00023288,2]
[365320115,1749599444334,-176.8341807,0.00023288,2]
[365320117,1749599444343,-158.7504224,0.00023288,2]
[365320119,1749599444351,-176.8341807,0.00023288,2]
[365320121,1749599444361,-573.3540349,0.00023288,2]
[365320123,1749599444370,-158.7504224,0.00023288,2]
[365320125,1749599444379,-153.0,0.00023288,2]
[365320127,1749599444388,-158.7504224,0.00023288,2]
[365320129,1749599444398,-174.1714265,0.00023288,2]
[365320131,1749599444407,-573.3540349,0.00023288,2]
[365320133,1749599444417,-153.0,0.00023288,2]
[365320135,1749599444426,-573.3540349,0.00023288,2]
[365320137,1749599444435,-158.7504224,0.00023288,2]
[365320139,1749599444444,-157.3008357,0.00023288,2]
[365320141,1749599444453,-573.3540349,0.00023288,2]
[365320143,1749599444461,-153.0,0.00023288,2]
[365320145,1749599444469,-573.3540349,0.00023288,2]
[365320147,1749599444477,-1143.5261092,0.00023288,2]
[365320149,1749599444485,-153.0,0.00023288,2]
[365320151,1749599444493,-156.8421927,0.00023288,2]
[365320153,1749599444502,-722.67,0.00023293,4]
[365320155,1749599444511,-151.0,0.000233,10]
[365320157,1749599444520,-72499.98,0.000233,7]
[365320159,1749599444529,-151.0,0.000233,7]
[365320161,1749599444538,-2939.890255,0.000233,2]
[365320163,1749599444547,-2939.890255,0.000233,2]
[365320165,1749599444556,-151.0,0.000233,7]
[365320167,1749599444566,-151.0,0.000233,7]
[365320169,1749599444576,-151.0,0.000233,7]
[365320171,1749599444585,-181.523813,0.000233,7]
[365320173,1749599444594,-181.523813,0.000233,7]
[365320175,1749599444603,-290.545719,0.000233,7]
[365320177,1749599444613,-290.545719,0.000233,7]
[365320179,1749599444622,-171.62568351,0.00023301,2]
[365320181,1749599444631,-500.0,0.00023327,2]
[365320183,1749599444641,-2875.67174954,0.00023348,9]
[365320185,1749599444650,-722.67,0.00023393,6]
[365320187,1749599444659,-25260.90195305,0.000234,7]
[365320189,1749599444669,-25260.90195305,0.000234,7]
[365320191,1749599444678,-151.0,0.000234,7]
[365320193,1749599444687,-151.0,0.000234,7]
[365320195,1749599444697,-151.0,0.000234,7]
[365320197,1749599444706,-151.0,0.00023424,2]
[365320199,1749599444715,-160.02203713,0.00023424,2]
[365320201,1749599444724,-207.4,0.00023424,2]
[365320203,1749599444733,-5000.0,0.00023424,2]
[365320205,1749599444742,-1688.0,0.00023424,2]
[365320207,1749599444751,-2500.0,0.00023424,2]
[365320209,1749599444762,-1500.0,0.00023424,2]
[365320211,1749599444772,-2500.0,0.00023424,2]
[365320213,1749599444781,-1500.0,0.00023424,2]
[365320215,1749599444791,-2500.0,0.00023424,2]
[365320217,1749599444800,-1500.0,0.00023424,2]
[365320219,1749599444809,-2323.54423715,0.00023424,2]
[365320221,1749599444818,-1500.0,0.00023424,2]
[365320223,1749599444828,-1500.0,0.00023424,2]
[365320225,1749599444837,-1500.0,0.00023424,2]
[365320227,1749599444846,-1500.0,0.00023424,2]
[365320229,1749599444855,-1500.0,0.00023424,2]
[365320231,1749599444864,-431.86117909,0.00023424,2]
[365320233,1749599444873,-1317.3030559,0.00023424,2]
[365320235,1749599444883,-151.0,0.00023424,7]
[365320237,1749599444893,-693.685656,0.00023424,7]
[365320239,1749599444902,-693.685656,0.00023424,7]
[365320241,1749599444911,-2875.67174954,0.00023452,9]
[365320243,1749599444921,-722.67,0.00023493,2]
[365320245,1749599444930,-464.82798071,0.00023528,2]
[365320247,1749599444939,-2875.67174954,0.00023555,9]
[365320249,1749599444952,-460.0,0.00023561,4]
[365320251,1749599444962,-460.0,0.00023561,4]
[365320253,1749599444971,-552.29,0.00023561,4]
[365320255,1749599444981,-400.0,0.00023561,4]
[365320257,1749599444990,-907.63,0.00023561,4]
[365320259,1749599444999,-460.0,0.00023561,4]
[365320261,1749599445010,-460.0,0.00023561,4]
[365320263,1749599445021,-1719.13,0.00023561,4]
[365320265,1749599445030,-604.28,0.00023561,4]
[365320275,1749599445134,-460.0,0.00023561,2]
[365320277,1749599445144,-2081.28,0.00023561,4]
[365320279,1749599445154,-460.0,0.00023561,4]
[365320281,1749599445165,-839.3,0.00023561,4]
[365320283,1749599445174,-1066.18,0.00023561,4]
[365320285,1749599445183,-1576.2,0.00023561,4]
[365320287,1749599445192,-1003.79,0.00023561,4]
[365320289,1749599445203,-1753.64,0.00023561,4]
[365320291,1749599445212,-652.87,0.00023561,4]
[365320293,1749599445223,-460.0,0.00023561,4]
[365320295,1749599445238,-2613.35,0.00023561,4]
[365320297,1749599445250,-460.0,0.00023561,4]
[365320300,1749599445263,-1160.04,0.00023561,4]
[365320302,1749599445278,-1827.66,0.00023561,4]
[365320303,1749599445287,-2159.34,0.00023561,4]
[365320305,1749599445297,-577.97,0.00023561,4]
[365320307,1749599445307,-460.0,0.00023561,4]
[365320309,1749599445317,-460.0,0.00023561,4]
[365320311,1749599445327,-1171.58,0.00023561,4]
[365320313,1749599445337,-672.06,0.00023561,4]
[365320314,1749599445347,-983.42,0.00023561,4]
[365320315,1749599445356,-2360.04,0.00023561,4]
[365320316,1749599445366,-722.67,0.00023593,2]
[365320317,1749599445376,-5427.0,0.00023613,7]
[365320318,1749599445385,-2875.67174954,0.00023659,9]
[365320319,1749599445395,-722.67,0.00023693,5]
[365320320,1749599445405,-159.54866634,0.00023699,2]
[365320321,1749599445414,-151.0,0.000237,7]
[365320322,1749599445424,-2875.67174954,0.00023762,9]
[365320323,1749599445434,-2936.8,0.0002377,2]
[365320324,1749599445444,-722.67,0.00023793,2]
[365320325,1749599445453,-41120.1583543,0.00023799,2]
[365320326,1749599445463,-151.0,0.00023799,7]
[365320327,1749599445473,-151.0,0.00023799,7]
[365320328,1749599445482,-151.0,0.00023799,7]
[365320329,1749599445491,-151.0,0.00023799,7]
[365320330,1749599445500,-151.0,0.00023799,7]
[365320331,1749599445510,-2939.890255,0.00023799,2]
[365320333,1749599445520,-2939.890255,0.00023799,2]
[365320335,1749599445530,-154.08081,0.00023799,7]
[365320337,1749599445539,-154.08081,0.00023799,7]
[365320339,1749599445549,-153.203852,0.00023799,7]
[365320341,1749599445559,-151.0,0.00023799,7]
[365320343,1749599445569,-181.523813,0.00023799,7]
[365320345,1749599445578,-181.523813,0.00023799,7]
[365320347,1749599445588,-290.545719,0.00023799,7]
[365320349,1749599445597,-290.545719,0.00023799,7]
[365320351,1749599445606,-774.51,0.000238,7]
[365320353,1749599445616,-151.0,0.000238,8]
[365320355,1749599445625,-43001.87,0.000238,2]
[365320357,1749599445635,-1500.0,0.00023816,2]
[365320359,1749599445645,-2400.0,0.00023816,2]
[365320361,1749599445654,-1001.49859335,0.00023821,2]
[365320363,1749599445663,-1000.0,0.00023821,2]
[365320365,1749599445672,-1000.0,0.00023821,2]
[365320367,1749599445682,-1000.0,0.00023821,2]
[365320369,1749599445692,-362.37,0.00023834,2]
[365320371,1749599445701,-151.0,0.00023835,7]
[365320373,1749599445710,-151.0,0.00023835,7]
[365320375,1749599445719,-151.0,0.00023835,7]
[365320377,1749599445729,-151.0,0.00023835,7]
[365320379,1749599445738,-280.0,0.00023835,4]
[365320381,1749599445747,-460.0,0.00023835,4]
[365320383,1749599445757,-552.29,0.00023835,4]
[365320385,1749599445767,-400.0,0.00023835,4]
[365320387,1749599445776,-907.63,0.00023835,4]
[365320389,1749599445785,-460.0,0.00023835,4]
[365320391,1749599445795,-460.0,0.00023835,4]
[365320393,1749599445804,-1719.13,0.00023835,4]
[365320395,1749599445814,-604.28,0.00023835,4]
[365320397,1749599445823,-460.0,0.00023835,2]
[365320399,1749599445832,-2081.28,0.00023835,4]
[365320401,1749599445842,-460.0,0.00023835,4]
[365320403,1749599445851,-839.3,0.00023835,4]
[365320405,1749599445861,-1066.18,0.00023835,4]
[365320407,1749599445870,-1576.2,0.00023835,4]
[365320409,1749599445880,-1003.79,0.00023835,4]
[365320411,1749599445889,-1753.64,0.00023835,4]
[365320413,1749599445899,-652.87,0.00023835,4]
[365320415,1749599445909,-460.0,0.00023835,4]
[365320417,1749599445918,-2613.35,0.00023835,4]
[365320419,1749599445929,-460.0,0.00023835,4]
[365320422,1749599445938,-1160.04,0.00023835,4]
[365320423,1749599445951,-1827.66,0.00023835,4]
[365320425,1749599445961,-2159.34,0.00023835,4]
[365320428,1749599445970,-460.0,0.00023835,4]
[365320430,1749599445981,-460.0,0.00023835,4]
[365320432,1749599445993,-1171.58,0.00023835,4]
[365320434,1749599446004,-672.06,0.00023835,4]
[365320436,1749599446013,-983.42,0.00023835,4]
[365320437,1749599446023,-2360.04,0.00023835,4]
[365320439,1749599446032,-129776.69,0.0002385,11]
[365320441,1749599446042,-2875.67174954,0.00023866,10]
[365320444,1749599446051,-1000.0,0.00023875,2]
[365320446,1749599446061,-722.67,0.00023893,7]
[365320448,1749599446070,-820.92810545,0.000239,2]
[365320450,1749599446080,-2875.67174954,0.00023969,10]
[365320452,1749599446089,-151.0,0.00023972,2]
[365320454,1749599446099,-5000.0,0.00023972,2]
[365320456,1749599446108,-713.6578839,0.00023973,2]
[365320457,1749599446118,-722.67,0.00023993,6]
[365320459,1749599446127,-154.434336,0.00024,7]
[365320461,1749599446136,-151.0,0.00024,7]
[365320464,1749599446146,-151.0,0.00024,7]
[365320466,1749599446156,-743.99652309,0.00024,30]
[365320467,1749599446165,-424.12530924,0.00024,7]
[365320469,1749599446175,-834.9046531,0.00024,7]
[365320472,1749599446185,-160.0,0.00024,7]
[365320474,1749599446195,-229.6792923,0.00024,7]
[365320476,1749599446204,-160.0,0.00024,7]
[365320477,1749599446213,-158.29,0.00024,2]
[365320479,1749599446222,-159.54866634,0.00024027,2]
[365320481,1749599446232,-171.62568351,0.00024069,2]
[365320483,1749599446241,-2875.67174954,0.00024072,10]
[365320485,1749599446251,-722.67,0.00024093,7]
[365320488,1749599446260,-151.0,0.000241,10]
[365320489,1749599446270,-151.0,0.000241,10]
[365320492,1749599446279,-460.0,0.00024109,4]
[365320494,1749599446289,-552.29,0.00024109,4]
[365320496,1749599446298,-400.0,0.00024109,4]
[365320498,1749599446306,-907.63,0.00024109,4]
[365320500,1749599446315,-160.0,0.00024109,4]
[365320502,1749599446324,-460.0,0.00024109,4]
[365320504,1749599446333,-1719.13,0.00024109,4]
[365320506,1749599446341,-604.28,0.00024109,4]
[365320508,1749599446350,-460.0,0.00024109,2]
[365320510,1749599446359,-2081.28,0.00024109,4]
[365320512,1749599446368,-460.0,0.00024109,4]
[365320514,1749599446377,-839.3,0.00024109,4]
[365320516,1749599446387,-1066.18,0.00024109,4]
[365320518,1749599446397,-1576.2,0.00024109,4]
[365320520,1749599446406,-1003.79,0.00024109,4]
[365320522,1749599446415,-1753.64,0.00024109,4]
[365320524,1749599446424,-652.87,0.00024109,4]
[365320526,1749599446434,-560.0,0.00024109,4]
[365320528,1749599446443,-2613.35,0.00024109,4]
[365320530,1749599446453,-460.0,0.00024109,4]
[365320532,1749599446462,-1160.04,0.00024109,4]
[365320534,1749599446471,-1827.66,0.00024109,4]
[365320536,1749599446481,-2159.34,0.00024109,4]
[365320538,1749599446490,-597.17046993,0.00024109,4]
[365320540,1749599446500,-460.0,0.00024109,4]
[365320542,1749599446509,-1171.58,0.00024109,4]
[365320544,1749599446518,-672.06,0.00024109,4]
[365320545,1749599446527,-983.42,0.00024109,4]
[365320547,1749599446536,-2360.04,0.00024109,4]
[365320549,1749599446545,-364.9974737,0.0002415,2]
[365320551,1749599446555,-364.9974737,0.0002415,2]
[365320553,1749599446564,-364.9974737,0.0002415,2]
[365320555,1749599446573,-364.9974737,0.0002415,2]
[365320557,1749599446583,-364.9974737,0.0002415,2]
[365320559,1749599446592,-364.9974737,0.0002415,2]
[365320561,1749599446601,-364.9974737,0.0002415,2]
[365320563,1749599446611,-1347.69737,0.00024157,3]
[365320565,1749599446621,-1207.0,0.00024164,2]
[365320567,1749599446631,-2875.67174954,0.00024176,10]
[365320569,1749599446640,-722.67,0.00024193,6]
[365320571,1749599446650,-151.0,0.000242,5]
[365320573,1749599446660,-842.5625,0.000242,10]
[365320575,1749599446669,-6661.50502107,0.00024255,2]
[365320577,1749599446678,-2875.67174954,0.00024279,10]
[365320579,1749599446687,-587.0,0.00024291,2]
[365320581,1749599446697,-722.67,0.00024293,2]
[365320583,1749599446706,-834.9046531,0.000243,10]
[365320585,1749599446715,-167.70861884,0.000243,2]
[365320587,1749599446724,-677.0,0.00024339,2]
[365320589,1749599446734,-600.0,0.00024352,2]
[365320591,1749599446743,-151.0,0.00024352,7]
[365320593,1749599446753,-693.685656,0.00024352,7]
[365320595,1749599446762,-693.685656,0.00024352,7]
[365320597,1749599446772,-677.0,0.00024357,2]
[365320599,1749599446780,-295.10013057,0.00024364,2]
[365320601,1749599446791,-168.0,0.00024367,2]
[365320603,1749599446800,-1500.0,0.00024368,2]
[365320605,1749599446809,-1500.0,0.00024368,2]
[365320607,1749599446819,-1500.0,0.00024368,2]
[365320609,1749599446828,-2875.67174954,0.00024383,11]
[365320611,1749599446837,-460.0,0.00024383,4]
[365320613,1749599446846,-552.29,0.00024383,4]
[365320615,1749599446855,-400.0,0.00024383,4]
[365320617,1749599446864,-907.63,0.00024383,4]
[365320619,1749599446874,-460.0,0.00024383,4]
[365320621,1749599446883,-1719.13,0.00024383,4]